fUST/lending_fUST_20250727
["ID","MTS","AMOUNT","RATE_DAILY","PERIOD"]
[375287149,1753617067043,-460.0,0.00021917,2]
[375287150,1753617067052,-460.0,0.00021917,2]
[375287151,1753617067062,-460.0,0.00021917,2]
[375287152,1753617067073,-500.0,0.00021917,2]
[375287153,1753617067083,-500.0,0.00021917,2]
[375287154,1753617067093,-500.0,0.00021917,2]
[375287155,1753617067102,-500.0,0.00021917,2]
[375287156,1753617067111,-500.0,0.00021917,2]
[375287157,1753617067121,-500.0,0.00021917,2]
[375287158,1753617067130,-500.0,0.00021917,2]
[375287159,1753617067140,-359.30961583,0.00021917,2]
[375287160,1753617067149,-460.0,0.00021917,2]
[375287161,1753617067159,-460.0,0.00021917,2]
[375287162,1753617067168,-460.0,0.00021917,2]
[375287163,1753617067178,-1433.41,0.00021917,2]
[375287164,1753617067187,-198.4,0.00021917,2]
[375287165,1753617067196,-460.0,0.00021917,2]
[375287166,1753617067206,-460.0,0.00021917,2]
[375287167,1753617067215,-3670.15,0.00021917,2]
[375287168,1753617067224,-667.98,0.00021917,2]
[375287169,1753617067234,-1015.9,0.00021917,2]
[375287170,1753617067243,-499.9,0.00021917,2]
[375287171,1753617067262,-2545.35,0.00021917,2]
[375287172,1753617067280,-532.42,0.00021917,2]
[375287173,1753617067299,-612.11,0.00021917,2]
[375287174,1753617067320,-1128.98,0.00021917,2]
[375287175,1753617067341,-564.54,0.00021917,2]
[375287176,1753617067360,-460.0,0.00021917,2]
[375287177,1753617067381,-813.34,0.00021917,2]
[375287178,1753617067398,-1594.92,0.00021917,2]
[375287179,1753617067415,-460.0,0.00021917,2]
[375287180,1753617067436,-460.0,0.00021917,2]
[375287181,1753617067456,-837.67,0.00021917,2]
[375287182,1753617067470,-460.0,0.00021917,2]
[375287183,1753617067488,-356.7184415,0.00021917,2]
[375287184,1753617067504,-460.0,0.00021917,2]
[375287185,1753617067519,-2138.03,0.00021917,2]
[375287186,1753617067534,-482.34,0.00021917,2]
[375287187,1753617067549,-460.0,0.00021917,2]
[375287188,1753617067564,-460.0,0.00021917,2]
[375287189,1753617067580,-460.0,0.00021917,2]
[375287190,1753617067594,-460.0,0.00021917,2]
[375287191,1753617067608,-460.0,0.00021917,2]
[375287192,1753617067623,-460.0,0.00021917,2]
[375287193,1753617067637,-460.0,0.00021917,2]
[375287194,1753617067651,-1503.06,0.00021917,2]
[375287195,1753617067666,-460.0,0.00021917,2]
[375287196,1753617067684,-511.88,0.00021917,2]
[375287197,1753617067699,-1723.24,0.00021917,2]
[375287198,1753617067713,-460.0,0.00021917,2]
[375287199,1753617067729,-460.0,0.00021917,2]
[375287200,1753617067743,-1570.77,0.00021917,2]
[375287201,1753617067758,-593.58,0.00021917,2]
[375287202,1753617067774,-1731.71,0.00021917,2]
[375287203,1753617067787,-1221.5,0.00021917,2]
[375287204,1753617067803,-150.0,0.00021918,2]
[375287205,1753617067818,-150.60043876,0.00021918,2]
[375287206,1753617067834,-2463.31883367,0.00021969,6]
[375287207,1753617067848,-3942.05,0.00022,7]
[375287208,1753617067863,-2791.57,0.00022,7]
[375287209,1753617067877,-797.56,0.00022,7]
[375287210,1753617067891,-24536.8,0.00022,2]
[375287211,1753617067905,-151.0,0.00022,7]
[375287212,1753617067919,-151.0,0.00022,7]
[375287213,1753617067934,-927.122458,0.00022,7]
[375287214,1753617067950,-927.122458,0.00022,7]
[375287215,1753617067966,-151.0,0.000221,6]
[375287216,1753617067980,-500.0,0.0002216,2]
[375287217,1753617067997,-2463.31883367,0.00022176,6]
[375287218,1753617068012,-460.0,0.00022191,2]
[375287219,1753617068026,-968.52,0.00022191,2]
[375287220,1753617068040,-604.98948426,0.00022191,2]
[375287221,1753617068055,-711.41,0.00022191,2]
[375287222,1753617068069,-460.0,0.00022191,2]
[375287223,1753617068187,-460.0,0.00022191,2]
[375287224,1753617068198,-460.0,0.00022191,2]
[375287225,1753617068208,-460.0,0.00022191,2]
[375287226,1753617068218,-581.49,0.00022191,2]
[375287227,1753617068228,-460.0,0.00022191,2]
[375287228,1753617068237,-460.0,0.00022191,2]
[375287229,1753617068247,-181.32,0.00022191,2]
[375287230,1753617068257,-502.66,0.00022191,2]
[375287231,1753617068266,-258.02964396,0.00022191,2]
[375287232,1753617068275,-475.73,0.00022191,2]
[375287233,1753617068285,-460.0,0.00022191,2]
[375287234,1753617068294,-466.19812012,0.00022191,2]
[375287235,1753617068303,-460.0,0.00022191,2]
[375287236,1753617068312,-460.0,0.00022191,2]
[375287237,1753617068323,-267.44385562,0.00022191,2]
[375287238,1753617068333,-460.0,0.00022191,2]
[375287239,1753617068344,-687.36,0.00022191,2]
[375287240,1753617068354,-460.0,0.00022191,2]
[375287241,1753617068363,-1494.55,0.00022191,2]
[375287242,1753617068373,-151.0,0.00022191,7]
[375287243,1753617068383,-151.0,0.00022191,7]
[375287244,1753617068393,-460.0,0.00022191,2]
[375287245,1753617068403,-460.0,0.00022191,2]
[375287246,1753617068412,-460.0,0.00022191,2]
[375287247,1753617068422,-460.0,0.00022191,2]
[375287248,1753617068432,-460.0,0.00022191,2]
[375287249,1753617068442,-460.0,0.00022191,2]
[375287250,1753617068451,-460.0,0.00022191,2]
[375287251,1753617068461,-460.0,0.00022191,2]
[375287252,1753617068470,-460.0,0.00022191,2]
[375287253,1753617068480,-1433.41,0.00022191,2]
[375287254,1753617068489,-494.63432746,0.00022191,2]
[375287255,1753617068499,-460.0,0.00022191,2]
[375287256,1753617068508,-3670.15,0.00022191,2]
[375287257,1753617068518,-667.98,0.00022191,2]
[375287258,1753617068527,-1015.9,0.00022191,2]
[375287259,1753617068537,-499.9,0.00022191,2]
[375287260,1753617068546,-2545.35,0.00022191,2]
[375287261,1753617068557,-532.42,0.00022191,2]
[375287262,1753617068566,-612.11,0.00022191,2]
[375287263,1753617068576,-1128.98,0.00022191,2]
[375287264,1753617068585,-564.54,0.00022191,2]
[375287265,1753617068595,-460.0,0.00022191,2]
[375287266,1753617068604,-813.34,0.00022191,2]
[375287267,1753617068613,-1594.92,0.00022191,2]
[375287268,1753617068622,-460.0,0.00022191,2]
[375287269,1753617068631,-837.67,0.00022191,2]
[375287270,1753617068640,-460.0,0.00022191,2]
[375287271,1753617068649,-460.0,0.00022191,2]
[375287272,1753617068659,-2138.03,0.00022191,2]
[375287273,1753617068669,-482.34,0.00022191,2]
[375287274,1753617068678,-483.37197748,0.00022191,2]
[375287275,1753617068687,-591.7221682,0.00022191,2]
[375287276,1753617068697,-460.0,0.00022191,2]
[375287277,1753617068707,-460.0,0.00022191,2]
[375287278,1753617068716,-460.0,0.00022191,2]
[375287279,1753617068726,-460.0,0.00022191,2]
[375287280,1753617068735,-1503.06,0.00022191,2]
[375287281,1753617068744,-460.0,0.00022191,2]
[375287282,1753617068754,-460.0,0.00022191,2]
[375287283,1753617068763,-511.88,0.00022191,2]
[375287284,1753617068772,-1723.24,0.00022191,2]
[375287285,1753617068782,-460.0,0.00022191,2]
[375287286,1753617068791,-460.0,0.00022191,2]
[375287287,1753617068803,-1570.77,0.00022191,2]
[375287288,1753617068813,-593.58,0.00022191,2]
[375287289,1753617068824,-1731.71,0.00022191,2]
[375287290,1753617068834,-1221.5,0.00022191,2]
[375287291,1753617068843,-560.0,0.00022192,2]
[375287292,1753617068852,-160.0,0.00022383,7]
[375287293,1753617068861,-2463.31883367,0.00022383,7]
[375287294,1753617068870,-12632.25855046,0.0002239,7]
[375287295,1753617068880,-787.72,0.000224,2]
[375287296,1753617068889,-587.0,0.00022427,2]
[375287297,1753617068899,-151.0,0.00022448,7]
[375287298,1753617068908,-151.0,0.00022448,7]
[375287299,1753617068918,-151.0,0.00022448,7]
[375287300,1753617068928,-151.0,0.00022448,7]
[375287301,1753617068937,-25000.0,0.00022449,2]
[375287302,1753617068946,-460.0,0.00022465,2]
[375287303,1753617068955,-968.52,0.00022465,2]
[375287304,1753617068965,-711.41,0.00022465,2]
[375287305,1753617068974,-460.0,0.00022465,2]
[375287306,1753617068984,-183.60991967,0.00022465,2]
[375287307,1753617068994,-460.0,0.00022465,2]
[375287308,1753617069003,-512.81054414,0.00022465,2]
[375287309,1753617069013,-581.49,0.00022465,2]
[375287310,1753617069022,-460.0,0.00022465,2]
[375287311,1753617069032,-460.0,0.00022465,2]
[375287312,1753617069041,-502.66,0.00022465,2]
[375287313,1753617069051,-475.73,0.00022465,2]
[375287314,1753617069060,-415.6,0.00022465,2]
[375287315,1753617069071,-151.0,0.00022465,7]
[375287316,1753617069081,-460.0,0.00022465,2]
[375287317,1753617069090,-328.08265147,0.00022465,2]
[375287318,1753617069100,-460.0,0.00022465,2]
[375287319,1753617069109,-687.36,0.00022465,2]
[375287320,1753617069119,-460.0,0.00022465,2]
[375287321,1753617069128,-1494.55,0.00022465,2]
[375287322,1753617069139,-460.0,0.00022465,2]
[375287323,1753617069148,-460.0,0.00022465,2]
[375287324,1753617069158,-531.80957028,0.00022465,2]
[375287325,1753617069167,-460.0,0.00022465,2]
[375287326,1753617069177,-460.0,0.00022465,2]
[375287327,1753617069187,-460.0,0.00022465,2]
[375287328,1753617069197,-460.0,0.00022465,2]
[375287329,1753617069207,-460.0,0.00022465,2]
[375287330,1753617069216,-460.0,0.00022465,2]
[375287331,1753617069226,-1433.41,0.00022465,2]
[375287332,1753617069236,-1756.67,0.00022465,2]
[375287333,1753617069246,-460.0,0.00022465,2]
[375287334,1753617069256,-3670.15,0.00022465,2]
[375287335,1753617069266,-667.98,0.00022465,2]
[375287336,1753617069276,-1015.9,0.00022465,2]
[375287337,1753617069286,-499.9,0.00022465,2]
[375287338,1753617069296,-2545.35,0.00022465,2]
[375287339,1753617069305,-532.42,0.00022465,2]
[375287340,1753617069314,-612.11,0.00022465,2]
[375287341,1753617069325,-1128.98,0.00022465,2]
[375287342,1753617069335,-564.54,0.00022465,2]
[375287343,1753617069348,-460.0,0.00022465,2]
[375287344,1753617069358,-813.34,0.00022465,2]
[375287345,1753617069367,-1594.92,0.00022465,2]
[375287346,1753617069377,-460.0,0.00022465,2]
[375287347,1753617069388,-837.67,0.00022465,2]
[375287348,1753617069398,-460.0,0.00022465,2]
[375287349,1753617069408,-507.30591198,0.00022465,2]
[375287350,1753617069418,-2138.03,0.00022465,2]
[375287351,1753617069428,-482.34,0.00022465,2]
[375287352,1753617069508,-460.0,0.00022465,2]
[375287353,1753617069519,-460.0,0.00022465,2]
[375287354,1753617069529,-460.0,0.00022465,2]
[375287355,1753617069540,-1503.06,0.00022465,2]
[375287356,1753617069550,-460.0,0.00022465,2]
[375287357,1753617069560,-460.0,0.00022465,2]
[375287358,1753617069569,-511.88,0.00022465,2]
[375287359,1753617069579,-1723.24,0.00022465,2]
[375287360,1753617069588,-460.0,0.00022465,2]
[375287361,1753617069598,-460.0,0.00022465,2]
[375287362,1753617069607,-1570.77,0.00022465,2]
[375287363,1753617069617,-593.58,0.00022465,2]
[375287364,1753617069626,-1731.71,0.00022465,2]
[375287365,1753617069635,-1221.5,0.00022465,2]
[375287366,1753617069646,-300.80236473,0.00022466,2]
[375287367,1753617069657,-279.44,0.00022507,2]
[375287368,1753617069666,-2463.31883367,0.0002259,7]
[375287369,1753617069675,-521.723157,0.00022603,2]
[375287370,1753617069686,-547.95885363,0.00022739,2]
[375287371,1753617069695,-968.52,0.00022739,2]
[375287372,1753617069705,-711.41,0.00022739,2]
[375287373,1753617069714,-203.27,0.00022739,2]
[375287374,1753617069723,-460.0,0.00022739,2]
[375287375,1753617069733,-581.49,0.00022739,2]
[375287376,1753617069743,-460.0,0.00022739,2]
[375287377,1753617069752,-460.0,0.00022739,2]
[375287378,1753617069761,-502.66,0.00022739,2]
[375287379,1753617069771,-475.73,0.00022739,2]
[375287380,1753617069780,-460.0,0.00022739,2]
[375287381,1753617069790,-460.0,0.00022739,2]
[375287382,1753617069800,-687.36,0.00022739,2]
[375287383,1753617069809,-460.0,0.00022739,2]
[375287384,1753617069819,-1494.55,0.00022739,2]
[375287385,1753617069829,-460.0,0.00022739,2]
[375287386,1753617069839,-460.0,0.00022739,2]
[375287387,1753617069850,-460.0,0.00022739,2]
[375287388,1753617069860,-460.0,0.00022739,2]
[375287389,1753617069871,-460.0,0.00022739,2]
[375287390,1753617069880,-460.0,0.00022739,2]
[375287391,1753617069890,-460.0,0.00022739,2]
[375287392,1753617069899,-1433.41,0.00022739,2]
[375287393,1753617069908,-460.0,0.00022739,2]
[375287394,1753617069918,-3670.15,0.00022739,2]
[375287395,1753617069927,-667.98,0.00022739,2]
[375287396,1753617069937,-1015.9,0.00022739,2]
[375287397,1753617069946,-499.9,0.00022739,2]
[375287398,1753617069955,-2545.35,0.00022739,2]
[375287399,1753617069965,-532.42,0.00022739,2]
[375287400,1753617069974,-612.11,0.00022739,2]
[375287401,1753617069983,-1128.98,0.00022739,2]
[375287402,1753617069993,-564.54,0.00022739,2]
[375287403,1753617070005,-460.0,0.00022739,2]
[375287404,1753617070014,-813.34,0.00022739,2]
[375287405,1753617070024,-1594.92,0.00022739,2]
[375287406,1753617070034,-460.0,0.00022739,2]
[375287407,1753617070043,-837.67,0.00022739,2]
[375287408,1753617070052,-460.0,0.00022739,2]
[375287409,1753617070063,-2138.03,0.00022739,2]
[375287410,1753617070072,-482.34,0.00022739,2]
[375287411,1753617070082,-460.0,0.00022739,2]
[375287412,1753617070091,-460.0,0.00022739,2]
[375287413,1753617070102,-460.0,0.00022739,2]
[375287414,1753617070111,-1503.06,0.00022739,2]
[375287415,1753617070120,-460.0,0.00022739,2]
[375287416,1753617070130,-460.0,0.00022739,2]
[375287417,1753617070140,-511.88,0.00022739,2]
[375287418,1753617070149,-1723.24,0.00022739,2]
[375287419,1753617070159,-460.0,0.00022739,2]
[375287420,1753617070168,-460.0,0.00022739,2]
[375287421,1753617070178,-1570.77,0.00022739,2]
[375287422,1753617070188,-593.58,0.00022739,2]
[375287423,1753617070198,-1731.71,0.00022739,2]
[375287424,1753617070207,-1221.5,0.00022739,2]
[375287425,1753617070216,-151.0,0.00022739,7]
[375287426,1753617070226,-660.0,0.0002274,2]
[375287427,1753617070236,-2463.31883367,0.00022797,7]
[375287428,1753617070245,-304.37602874,0.00022884,5]
[375287429,1753617070255,-25000.0,0.00022997,2]
[375287430,1753617070264,-160.0,0.00023,2]
[375287431,1753617070274,-2463.31883367,0.00023003,8]
[375287432,1753617070283,-968.52,0.00023013,2]
[375287433,1753617070293,-711.41,0.00023013,2]
[375287434,1753617070302,-460.0,0.00023013,2]
[375287435,1753617070312,-581.49,0.00023013,2]
[375287436,1753617070321,-460.0,0.00023013,2]
[375287437,1753617070330,-460.0,0.00023013,2]
[375287438,1753617070340,-502.66,0.00023013,2]
[375287439,1753617070354,-475.73,0.00023013,2]
[375287440,1753617070364,-298.76,0.00023013,2]
[375287441,1753617070373,-460.0,0.00023013,2]
[375287442,1753617070383,-687.36,0.00023013,2]
[375287443,1753617070393,-460.0,0.00023013,2]
[375287444,1753617070403,-1494.55,0.00023013,2]
[375287445,1753617070413,-460.0,0.00023013,2]
[375287446,1753617070423,-460.0,0.00023013,2]
[375287447,1753617070433,-460.0,0.00023013,2]
[375287448,1753617070442,-232.40060355,0.00023013,2]
[375287449,1753617070451,-460.0,0.00023013,2]
[375287450,1753617070461,-460.0,0.00023013,2]
[375287451,1753617070470,-460.0,0.00023013,2]
[375287452,1753617070480,-1433.41,0.00023013,2]
[375287453,1753617070490,-3670.15,0.00023013,2]
[375287454,1753617070502,-667.98,0.00023013,2]
[375287455,1753617070512,-1015.9,0.00023013,2]
[375287456,1753617070521,-499.9,0.00023013,2]
[375287457,1753617070532,-2545.35,0.00023013,2]
[375287458,1753617070545,-532.42,0.00023013,2]
[375287459,1753617070555,-612.11,0.00023013,2]
[375287460,1753617070567,-1128.98,0.00023013,2]
[375287461,1753617070577,-564.54,0.00023013,2]
[375287462,1753617070587,-460.0,0.00023013,2]
[375287463,1753617070596,-813.34,0.00023013,2]
[375287464,1753617070607,-1594.92,0.00023013,2]
[375287465,1753617070616,-460.0,0.00023013,2]
[375287466,1753617070627,-837.67,0.00023013,2]
[375287467,1753617070637,-460.0,0.00023013,2]
[375287468,1753617070646,-2138.03,0.00023013,2]
[375287469,1753617070655,-482.34,0.00023013,2]
[375287470,1753617070664,-460.0,0.00023013,2]
[375287471,1753617070674,-460.0,0.00023013,2]
[375287472,1753617070750,-460.0,0.00023013,2]
[375287473,1753617070760,-1503.06,0.00023013,2]
[375287474,1753617070770,-460.0,0.00023013,2]
[375287475,1753617070780,-460.0,0.00023013,2]
[375287476,1753617070790,-511.88,0.00023013,2]
[375287477,1753617070799,-1723.24,0.00023013,2]
[375287478,1753617070809,-460.0,0.00023013,2]
[375287479,1753617070819,-460.0,0.00023013,2]
[375287480,1753617070830,-1570.77,0.00023013,2]
[375287481,1753617070840,-593.58,0.00023013,2]
[375287482,1753617070849,-1731.71,0.00023013,2]
[375287483,1753617070858,-1221.5,0.00023013,2]
[375287484,1753617070868,-578.34,0.00023134,7]
[375287485,1753617070878,-597.07,0.00023134,5]
[375287486,1753617070887,-200.64658427,0.00023165,2]
[375287487,1753617070897,-2463.31883367,0.0002321,8]
[375287488,1753617070907,-578.34,0.00023234,3]
[375287489,1753617070916,-597.07,0.00023234,5]
[375287490,1753617070926,-500.0,0.00023256,2]
[375287491,1753617070935,-968.52,0.00023287,2]
[375287492,1753617070946,-711.41,0.00023287,2]
[375287493,1753617070955,-460.0,0.00023287,2]
[375287494,1753617070965,-581.49,0.00023287,2]
[375287495,1753617070974,-460.0,0.00023287,2]
[375287496,1753617070984,-478.62,0.00023287,2]
[375287497,1753617070993,-502.66,0.00023287,2]
[375287498,1753617071003,-475.73,0.00023287,2]
[375287499,1753617071012,-384.62,0.00023287,2]
[375287500,1753617071022,-687.36,0.00023287,2]
[375287501,1753617071031,-460.0,0.00023287,2]
[375287502,1753617071040,-1494.55,0.00023287,2]
[375287503,1753617071050,-460.0,0.00023287,2]
[375287504,1753617071059,-460.0,0.00023287,2]
[375287505,1753617071069,-460.0,0.00023287,2]
[375287506,1753617071080,-460.0,0.00023287,2]
[375287507,1753617071090,-460.0,0.00023287,2]
[375287508,1753617071100,-460.0,0.00023287,2]
[375287509,1753617071109,-1433.41,0.00023287,2]
[375287510,1753617071119,-3670.15,0.00023287,2]
[375287511,1753617071129,-667.98,0.00023287,2]
[375287512,1753617071140,-1015.9,0.00023287,2]
[375287513,1753617071150,-499.9,0.00023287,2]
[375287514,1753617071160,-2545.35,0.00023287,2]
[375287515,1753617071170,-532.42,0.00023287,2]
[375287516,1753617071183,-612.11,0.00023287,2]
[375287517,1753617071193,-1128.98,0.00023287,2]
[375287518,1753617071202,-564.54,0.00023287,2]
[375287519,1753617071213,-460.0,0.00023287,2]
[375287520,1753617071223,-813.34,0.00023287,2]
[375287521,1753617071233,-460.0,0.00023287,2]
[375287522,1753617071243,-1594.92,0.00023287,2]
[375287523,1753617071253,-837.67,0.00023287,2]
[375287524,1753617071263,-460.0,0.00023287,2]
[375287525,1753617071273,-2138.03,0.00023287,2]
[375287526,1753617071282,-482.34,0.00023287,2]
[375287527,1753617071292,-460.0,0.00023287,2]
[375287528,1753617071301,-228.43,0.00023287,2]
[375287529,1753617071311,-460.0,0.00023287,2]
[375287530,1753617071320,-1503.06,0.00023287,2]
[375287531,1753617071331,-460.0,0.00023287,2]
[375287532,1753617071343,-460.0,0.00023287,2]
[375287533,1753617071354,-511.88,0.00023287,2]
[375287534,1753617071365,-1723.24,0.00023287,2]
[375287535,1753617071374,-460.0,0.00023287,2]
[375287536,1753617071384,-1570.77,0.00023287,2]
[375287537,1753617071395,-593.58,0.00023287,2]
[375287538,1753617071405,-1731.71,0.00023287,2]
[375287539,1753617071416,-1221.5,0.00023287,2]
[375287540,1753617071427,-172.29839479,0.00023288,2]
[375287541,1753617071438,-760.0,0.00023288,2]
[375287542,1753617071447,-2791.57,0.000233,7]
[375287543,1753617071456,-797.56,0.000233,7]
[375287544,1753617071466,-24536.8,0.000233,2]
[375287545,1753617071475,-189.733509,0.000233,7]
[375287546,1753617071486,-578.34,0.00023334,3]
[375287547,1753617071496,-597.07,0.00023334,7]
[375287548,1753617071506,-172.29839479,0.00023397,2]
[375287549,1753617071516,-2463.31883367,0.00023417,9]
[375287550,1753617071526,-578.34,0.00023434,5]
[375287551,1753617071536,-597.07,0.00023434,3]
[375287552,1753617071547,-349.3,0.00023445,2]
[375287553,1753617071556,-5000.0,0.00023479,3]
[375287554,1753617071565,-151.0,0.00023487,6]
[375287555,1753617071575,-151.0,0.000235,6]
[375287556,1753617071584,-840.75038169,0.000235,3]
[375287557,1753617071594,-526.50274803,0.000235,3]
[375287558,1753617071603,-477.07289566,0.000235,3]
[375287559,1753617071612,-160.0,0.000235,3]
[375287560,1753617071622,-231.30466539,0.000235,3]
[375287561,1753617071632,-160.0,0.000235,3]
[375287562,1753617071641,-12632.25855046,0.000235,3]
[375287563,1753617071651,-160.0,0.000235,3]
[375287564,1753617071660,-172.29839479,0.00023507,2]
[375287565,1753617071669,-578.36,0.00023534,5]
[375287566,1753617071678,-597.1,0.00023534,3]
[375287567,1753617071687,-25000.0,0.00023545,2]
[375287568,1753617071697,-968.52,0.00023561,2]
[375287569,1753617071706,-711.41,0.00023561,2]
[375287570,1753617071715,-200.0,0.00023561,2]
[375287571,1753617071725,-200.0,0.00023561,2]
[375287572,1753617071735,-200.0,0.00023561,2]
[375287573,1753617071744,-200.0,0.00023561,2]
[375287574,1753617071753,-200.0,0.00023561,2]
[375287575,1753617071762,-312.48441259,0.00023561,2]
[375287576,1753617071771,-534.53,0.00023561,2]
[375287577,1753617071781,-581.49,0.00023561,2]
[375287578,1753617071790,-460.0,0.00023561,2]
[375287579,1753617071799,-502.66,0.00023561,2]
[375287580,1753617071809,-475.73,0.00023561,2]
[375287581,1753617071818,-687.36,0.00023561,2]
[375287582,1753617071891,-460.0,0.00023561,2]
[375287583,1753617071901,-1494.55,0.00023561,2]
[375287584,1753617071910,-460.0,0.00023561,2]
[375287585,1753617071919,-460.0,0.00023561,2]
[375287586,1753617071928,-460.0,0.00023561,2]
[375287587,1753617071938,-460.0,0.00023561,2]
[375287588,1753617071947,-460.0,0.00023561,2]
[375287589,1753617071957,-460.0,0.00023561,2]
[375287590,1753617071967,-1433.41,0.00023561,2]
[375287591,1753617071975,-176.590682,0.00023561,7]
[375287592,1753617071985,-3670.15,0.00023561,2]
[375287593,1753617071994,-1015.9,0.00023561,2]
[375287594,1753617072004,-667.98,0.00023561,2]
[375287595,1753617072014,-499.9,0.00023561,2]
[375287596,1753617072024,-2545.35,0.00023561,2]
[375287597,1753617072033,-532.42,0.00023561,2]
[375287598,1753617072042,-612.11,0.00023561,2]
[375287599,1753617072052,-1128.98,0.00023561,2]
[375287600,1753617072061,-564.54,0.00023561,2]
[375287601,1753617072071,-460.0,0.00023561,2]
[375287602,1753617072085,-813.34,0.00023561,2]
[375287603,1753617072095,-460.0,0.00023561,2]
[375287604,1753617072105,-927.122458,0.00023561,7]
[375287605,1753617072115,-1594.92,0.00023561,2]
[375287606,1753617072125,-837.67,0.00023561,2]
[375287607,1753617072134,-927.122458,0.00023561,7]
[375287608,1753617072144,-460.0,0.00023561,2]
[375287609,1753617072154,-2138.03,0.00023561,2]
[375287610,1753617072164,-482.34,0.00023561,2]
[375287611,1753617072173,-443.73,0.00023561,2]
[375287612,1753617072184,-460.0,0.00023561,2]
[375287613,1753617072194,-1503.06,0.00023561,2]
[375287614,1753617072204,-460.0,0.00023561,2]
[375287615,1753617072215,-460.0,0.00023561,2]
[375287616,1753617072224,-511.88,0.00023561,2]
[375287617,1753617072234,-1723.24,0.00023561,2]
[375287618,1753617072244,-460.0,0.00023561,2]
[375287619,1753617072253,-1570.77,0.00023561,2]
[375287620,1753617072264,-593.58,0.00023561,2]
[375287621,1753617072273,-1731.71,0.00023561,2]
[375287622,1753617072283,-1221.5,0.00023561,2]
[375287623,1753617072292,-172.29839479,0.00023616,2]
[375287624,1753617072301,-2463.31883367,0.00023624,9]
[375287625,1753617072310,-172.29839479,0.00023726,2]
[375287626,1753617072320,-2463.31883367,0.00023831,10]
[375287627,1753617072334,-968.52,0.00023835,2]
[375287628,1753617072344,-711.41,0.00023835,2]
[375287629,1753617072356,-581.49,0.00023835,2]
[375287630,1753617072365,-504.85429499,0.00023835,2]
[375287631,1753617072375,-502.66,0.00023835,2]
[375287632,1753617072384,-475.73,0.00023835,2]
[375287633,1753617072405,-687.36,0.00023835,2]
[375287634,1753617072422,-460.0,0.00023835,2]
[375287635,1753617072440,-1494.55,0.00023835,2]
[375287636,1753617072459,-462.82245876,0.00023835,2]
[375287637,1753617072477,-460.0,0.00023835,2]
[375287638,1753617072495,-460.0,0.00023835,2]
[375287639,1753617072512,-460.0,0.00023835,2]
[375287640,1753617072526,-460.0,0.00023835,2]
[375287641,1753617072545,-460.0,0.00023835,2]
[375287642,1753617072565,-1433.41,0.00023835,2]
[375287643,1753617072583,-3670.15,0.00023835,2]
[375287644,1753617072598,-1015.9,0.00023835,2]
[375287645,1753617072616,-667.98,0.00023835,2]
[375287646,1753617072632,-499.9,0.00023835,2]
[375287647,1753617072644,-2545.35,0.00023835,2]
[375287648,1753617072659,-532.42,0.00023835,2]